Cogmind - Beta 13 @@@ ROGUE MODE // 2024.06.28 @ 01:05:11 Player: sormi Result: Destroyed by Y-54 Guardian with Gatling Laser Performance ------------- Evolutions (4) 2000 Regions Visited (10) 2000 Robots Destroyed (80) 400 Value Destroyed (2587) 2587 Prototype IDs (28) 560 Alien Tech Used (0) 0 Bonus (421) 421 TOTAL SCORE: 7968 Bonus ------- High Alert Combat Kills 16 Follower Combat Kills 142 Aligned with FarCom 300 Friendly Fire -37 Cogmind --------- Core Integrity 0/850 Matter 229/300 Energy 325/325 System Corruption 11% Temperature Cool (6) Movement Walking (120) Location -6/Extension Parts ------- > --- POWER (3) -------- Improved Ion Engine Light Fission Core > --- PROPULSION (3) --- Carbon-fiber Leg Carbon-fiber Leg Carbon-fiber Leg > --- UTILITY (5) ------ Advanced Heat Sink Medium Storage Unit Weight Redist. System Advanced Signal Interpreter > --- WEAPON (4) ------- Heavy Plasma Cannon Gauss Rifle Flak Gun > --- INVENTORY (10) --- Light Nuclear Core Flexi-carbon Leg Flexi-carbon Leg Medium Storage Unit Improved Hacking Suite Improved Field Recycling Unit (0) Heavy Beamcaster Heavy Beamcaster Peak State ------------ > --- POWER ------------ Improved Deuterium Engine Fission Core Light Fission Core > --- PROPULSION ------- Titanium Leg Titanium Leg VSS Leg > --- UTILITY ---------- Advanced Heat Sink Improved Cooling System Improved Cooling System Advanced Visual Processing Unit Improved Sensor Array > --- WEAPON ----------- Heavy Ion Cannon Compact Ion Cannon Advanced Assault Cannon Long-range Missile Launcher > --- INVENTORY -------- Angular Momentum Engine Proton Cannon Heavy Plasma Cannon Heavy Machine Gun Proton Missile Launcher [Rating: 63] Favorites ----------- Power Improved Deuterium Engine Engine Improved Deuterium Engine Power Core Nuclear Core Propulsion Carbon-fiber Leg Leg Carbon-fiber Leg Wheel Wheel Flight Unit Cooled Nuclear Pulse Thruster Utility Improved Cooling System Device Improved Cooling System Storage Medium Storage Unit Processor Advanced Visual Processing Unit Protection Core Shielding Weapon Grenade Launcher Energy Gun Gatling Laser Energy Cannon Phase Cannon Ballistic Gun Gauss Rifle Ballistic Cannon Assault Cannon Launcher Grenade Launcher Slashing Weapon Great Axe Build | -11 -10 -10 -10 -9 -8 -7 -7 -7 -6 -6 ------- Run | Yrd Mat Min Exi Min Mat Fac Was Fac Fac Ext Slots Evolved 8 | . . . . . 4 2 . . 2 . Power 2 | . . . . . . 1 . . 1 . Propulsion 1 | . . . . . 1 . . . . . Utility 3 | . . . . . 2 . . . 1 . Weapon 2 | . . . . . 1 1 . . . . Parts Attached 151 | 5 18 4 . 6 28 6 14 23 42 5 Power 22 | 1 1 1 . . 3 1 1 2 11 1 Engine 12 | 1 . 1 . . . 1 . 1 7 1 Core 10 | . 1 . . . 3 . 1 1 4 . Reactor . | . . . . . . . . . . . Propulsion 33 | 2 2 . . 3 11 . 4 3 7 1 Treads . | . . . . . . . . . . . Leg 23 | . . . . 2 7 . 3 3 7 1 Wheel 9 | 2 2 . . 1 4 . . . . . Hover . | . . . . . . . . . . . Flight 1 | . . . . . . . 1 . . . Utility 45 | . 8 3 . 3 7 1 3 9 10 1 Device 28 | . 5 1 . 2 5 1 3 4 6 1 Storage 5 | . 1 1 . . . . . . 3 . Processor 5 | . 1 . . . 1 . . 2 1 . Hackware . | . . . . . . . . . . . Protection 7 | . 1 1 . 1 1 . . 3 . . Artifact . | . . . . . . . . . . . Weapon 51 | 2 7 . . . 7 4 6 9 14 2 Energy Gun 13 | 1 2 . . . 1 1 2 3 2 1 Energy Cannon 13 | . 1 . . . 1 1 3 1 6 . Ballistic Gun 6 | 1 . . . . 1 . . 1 2 1 Ballistic Cannon 5 | . . . . . 1 1 1 1 1 . Launcher 12 | . 4 . . . 3 1 . 1 3 . Special Weapon . | . . . . . . . . . . . Impact Weapon . | . . . . . . . . . . . Slashing Weapon 2 | . . . . . . . . 2 . . Piercing Weapon . | . . . . . . . . . . . Special Melee Weapon . | . . . . . . . . . . . Unidentified Prototypes 5 | . . . . . 1 1 1 1 1 . Corrupted Parts 3 | . . . . . . . . . 3 . System Corruption 10 | . . . . . . . . . 10 . Parts Lost 53 | . 4 3 . . 3 . 11 4 20 8 Power 11 | . . 2 . . . . 1 1 5 2 Propulsion 8 | . 1 . . . 1 . 2 . 3 1 Utility 15 | . 2 1 . . 2 . 3 1 4 2 Weapon 19 | . 1 . . . . . 5 2 8 3 Highest Loss Streak 9 | . 3 3 . . 2 . 9 4 9 4 To Critical Strikes . | . . . . . . . . . . . Average Slot Usage (%) 86 | . 89 85 85 76 92 99 48 81 88 98 Engine 6 | . 3 . . . . 7 2 6 9 12 Core 6 | . 10 . . . 7 7 3 6 7 6 Leg 13 | . . . . 8 8 23 11 20 17 19 Wheel 6 | . 24 28 28 10 15 . . . . . Device 15 | . 13 12 14 5 17 15 6 17 17 19 Storage 6 | . . 14 14 14 9 7 2 . 5 6 Processor 3 | . 2 . . . 1 . . 2 4 6 Protection 2 | . 3 1 . 8 5 7 4 4 . . Energy Gun 3 | . 8 . . . 4 6 4 11 1 1 Energy Cannon 9 | . 5 14 14 14 7 . . 1 12 15 Ballistic Gun 1 | . . . . . 4 . . . 2 8 Ballistic Cannon 2 | . . . . . 1 15 6 2 2 . Launcher 6 | . 13 14 14 14 9 7 2 2 3 . Naked Turns 22 | . . . . . . . 22 . . . Heaviest Build 71 | 7 17 27 27 28 40 50 50 61 71 69 Greatest Support 58 | 20 20 20 10 13 58 50 50 46 51 51 Greatest Overweight (x) 19 | . 1 2 2 2 9 . 1 1 19 1 Average Overweight (x) . | . . . 2 2 . . . . 1 . Largest Inventory Capacity 15 | 5 8 15 15 15 15 15 15 5 10 10 Average Capacity 9 | 5 5 9 15 15 15 15 8 5 8 10 Most Carried 15 | 3 6 10 11 15 15 15 15 5 10 10 Average Carried 7 | . 4 6 10 13 13 14 7 4 6 7 Final Capacity 15 | 5 8 15 15 15 15 15 5 5 10 10 Final Carried 15 | 3 6 10 11 15 15 15 2 5 10 8 Class Distribution -------------------- 33% | Scavenger-Skirmisher 32% | Mutant 26% | Skirmisher 4% | Scavenger-Mutant Dominant Class ---------------- Mutant | -10/Materials Mutant | -10/Mines Mutant | -10/Exiles Mutant | -9/Mines Skirmisher | -8/Materials Skirmisher | -7/Factory Mutant | -7/Waste Mutant | -7/Factory Scavenger-Skirmisher | -6/Factory Scavenger-Skirmisher | -6/Extension Resources | -11 -10 -10 -10 -9 -8 -7 -7 -7 -6 -6 ----------- Run | Yrd Mat Min Exi Min Mat Fac Was Fac Fac Ext Matter Collected 2498 | 253 158 140 . 80 372 66 171 474 704 80 Remotely . | . . . . . . . . . . . Salvage Created 3761 | 44 344 72 . . 307 . 272 589 2064 69 Parts 176 | 2 31 7 . . 22 . . 28 82 4 Haulers Intercepted 1 | . 1 . . . . . . . . . Recyclers Shooed 8 | . 2 . . . 2 . . . 4 . Parts Field Recycled . | . . . . . . . . . . . Retrieved Matter . | . . . . . . . . . . . Parts Self-Destructed . | . . . . . . . . . . . Prevented . | . . . . . . . . . . . Kills | -11 -10 -10 -10 -9 -8 -7 -7 -7 -6 -6 ------- Run | Yrd Mat Min Exi Min Mat Fac Was Fac Fac Ext Combat Hostiles Destroyed 54 | 1 11 5 . . 6 . 1 8 19 3 Guns 13 | 1 2 . . . 1 . . 3 5 1 Cannons 21 | . . . . . 3 . . 4 12 2 AOE 19 | . 9 5 . . 2 . 1 1 1 . Classes Destroyed 15 | 1 5 . . . 4 . 1 1 3 . Worker 4 | . 1 . . . . . . . 3 . Builder 5 | . 2 . . . 1 . . . 2 . Hauler 1 | . 1 . . . . . . . . . Recycler 9 | . . . . . 1 . . 1 7 . Operator 1 | . . . . . . . . . 1 . Watcher 6 | . 3 . . . . . . 2 1 . Swarmer 13 | . 5 3 . . 2 . . . . 3 Grunt 20 | 1 6 2 . . . . . 4 7 . Brawler 1 | . . . . . 1 . . . . . Duelist 1 | . . . . . 1 . . . . . Sentry 8 | . . . . . 2 . . 2 4 . Hunter 3 | . . . . . . . . . 3 . Programmer 6 | . . . . . . . . 2 4 . Heavy 1 | . . . . . . . . . 1 . Compactor 1 | . . . . . . . 1 . . . Best Kill Streak 8 | 1 8 5 . . 3 . 1 6 4 3 Combat Bots Only 5 | 1 5 5 . . 2 . 1 4 4 3 Max Kills in Single Turn 3 | 1 2 3 . . 2 . 1 2 2 1 Gunslinging . | . . . . . . . . . . . Exploded 3 | . 2 3 . . 1 . 1 1 1 . Melee . | . . . . . . . . . . . Uniques/NPCs Destroyed . | . . . . . . . . . . . Combat | -11 -10 -10 -10 -9 -8 -7 -7 -7 -6 -6 -------- Run | Yrd Mat Min Exi Min Mat Fac Was Fac Fac Ext Hostile Shots Fired 592 | 1 62 2 . . 29 . 9 103 294 92 Missed 218 | . 22 . . . 13 . 1 43 111 28 Damage Taken 6076 | 12 477 81 . . 324 . 355 927 2960 940 Core 1283 | . 135 14 . . 25 . 170 87 781 71 Absorbed by Shields . | . . . . . . . . . . . Redirected to Shielding 37 | . . . . . 4 . 33 . . . Ignored by Resistances 14 | . . . . . . . . 14 . . Regen/Repaired (Parts) 119 | . 69 . . . . 50 . . . . Core Remaining (%) 74 | 100 . . . 40 95 . . 63 . . Volleys Fired 180 | 1 34 3 . . 16 . 11 25 82 8 Largest 4 | 2 2 2 . . 3 . 4 4 4 4 Hottest 288 | 70 95 90 . . 140 . 168 219 288 288 Shots Fired 420 | 2 49 6 . . 38 . 34 57 207 27 Gun 158 | 2 34 . . . 16 . 8 34 50 14 Cannon 217 | . . 3 . . 16 . 20 14 151 13 Launcher 45 | . 15 3 . . 6 . 6 9 6 . Special . | . . . . . . . . . . . Kinetic 95 | 1 . . . . 7 . 19 11 43 14 Thermal 229 | 1 34 3 . . 15 . 1 17 145 13 Explosive 34 | . 15 3 . . 6 . 6 . 4 . Electromagnetic 62 | . . . . . 10 . 8 29 15 . Robot Hit Streak 16 | 2 8 3 . . 8 . 11 10 16 5 Robot Miss Streak 7 | . 2 1 . . 3 . 1 7 5 3 Penetration Max 1 | . . . . . . . . . 1 1 Secondary Targets . | . . . . . . . . . . . Shots Hit Robots 246 | 2 26 3 . . 22 . 27 31 123 12 Core Hits 154 | 2 28 6 . . 13 . 6 29 60 10 Critical Kills 2 | . . . . . . . . . 2 . Critical Parts Destroyed 1 | . . . . . . . . . . 1 Critical Strikes 6 | . 1 . . . . . 1 . 3 1 Burn 1 | . 1 . . . . . . . . . Meltdown 2 | . . . . . . . . . 2 . Destroy 1 | . . . . . . . . . . 1 Blast 1 | . . . . . . . 1 . . . Corrupt 1 | . . . . . . . . . 1 . Melee Attacks 3 | . . . . . . . . 3 . . Impact . | . . . . . . . . . . . Slashing 3 | . . . . . . . . 3 . . Piercing . | . . . . . . . . . . . Sneak Attacks . | . . . . . . . . . . . Combat Hostiles . | . . . . . . . . . . . Follow-up Attacks . | . . . . . . . . . . . Damage Inflicted 8328 | 23 1214 319 . . 526 . 889 843 4027 487 Guns 1698 | 23 282 . . . 163 . 5 295 642 288 Cannons 3804 | . . 18 . . 203 . 431 176 2777 199 Explosions 2648 | . 932 280 . . 157 . 453 282 544 . Melee 63 | . . . . . . . . 63 . . Ramming 115 | . . 21 . . 3 . . 27 64 . Kinetic 1467 | 10 . . . . 109 . 403 94 563 288 Thermal 3955 | 13 282 91 . . 215 . 28 356 2771 199 Explosive 1915 | . 932 207 . . 119 . 453 . 204 . Electromagnetic 813 | . . . . . 80 . 5 303 425 . Impact . | . . . . . . . . . . . Slashing 63 | . . . . . . . . 63 . . Piercing . | . . . . . . . . . . . Highest Corruption 11 | . . . . . . . . 7 11 11 Average Corruption 6 | . . . . . . . . 6 5 11 Corruption Purged . | . . . . . . . . . . . Corruption Blocked . | . . . . . . . . . . . Effects 86 | . . . . . . . . 6 61 19 Message Errors 24 | . . . . . . . . . 18 6 Matter Fused 21 | . . . . . . . . 2 14 5 Heat Flow Errors 10 | . . . . . . . . . 7 3 Energy Discharges 6 | . . . . . . . . . 5 1 Parts Rejected 2 | . . . . . . . . 2 . . Parts Fused 1 | . . . . . . . . . 1 . Data Loss (minor) 12 | . . . . . . . . 2 10 . Data Loss (major) 4 | . . . . . . . . . . 4 Misfires 1 | . . . . . . . . . 1 . Alerts 3 | . . . . . . . . . 3 . Weapon Failures 2 | . . . . . . . . . 2 . Overload Shots . | . . . . . . . . . . . Overflow Damage 155 | . 35 28 . . . . . . 92 . Projectiles 73 | . . . . . . . . . 73 . Explosions 82 | . 35 28 . . . . . . 19 . Melee . | . . . . . . . . . . . Knockbacks 2 | . . . . . . . . 1 1 . Impact 2 | . . . . . . . . 1 1 . Kinetic . | . . . . . . . . . . . Secondary . | . . . . . . . . . . . Self-Inflicted Damage 273 | . 85 50 . . 65 . 32 41 . . Shots 10 | . 3 1 . . 1 . 1 4 . . Rammed 3 | . . 2 . . 1 . . . . . Targets Rammed 17 | . . 2 . . 1 . . 3 11 . Kicked 14 | . . . . . . . . 3 11 . Crushed . | . . . . . . . . . . . Highest Temperature 687 | 9 194 83 . . 258 . 378 257 687 343 Average Temperature 116 | 6 54 37 . . 107 . 149 113 132 130 Received Heat Transfer 1140 | 6 120 18 . . 117 . . 162 597 120 Effects 31 | . . . . . . . 3 . 28 . Shutdowns 9 | . . . . . . . 1 . 8 . Energy Bleed 3 | . . . . . . . . . 3 . Interference 5 | . . . . . . . . . 5 . Matter Decay 3 | . . . . . . . 1 . 2 . Damage (minor) 2 | . . . . . . . 1 . 1 . Damage (major) 7 | . . . . . . . . . 7 . Damage (core) 2 | . . . . . . . . . 2 . Siege Activations . | . . . . . . . . . . . Robots Corrupted . | . . . . . . . . . . . Combat Hostiles . | . . . . . . . . . . . Parts Fried . | . . . . . . . . . . . Impact Corruptions . | . . . . . . . . . . . Robots Melted 2 | . . . . . . . . . 2 . Combat Hostiles 1 | . . . . . . . . . 1 . Parts Melted 18 | . 1 . . . . . . . 17 . Heat Transferred 5918 | 37 851 137 . . 420 . 37 586 3589 261 Parts Sabotaged . | . . . . . . . . . . . Parts Stolen . | . . . . . . . . . . . Parts Stripped . | . . . . . . . . . . . Power Chain Reactions 3 | . . . . . 1 . . 1 1 . Alert | -11 -10 -10 -10 -9 -8 -7 -7 -7 -6 -6 ------- Run | Yrd Mat Min Exi Min Mat Fac Was Fac Fac Ext Peak Influence 448 | 20 448 228 . . 230 118 15 142 361 209 Initial 164 | . 13 96 . . . 92 . . 69 164 Average 119 | 3 229 217 . . 122 105 2 53 133 155 Maximum Alert Level 2 | . 2 1 . . 1 . . . 1 1 Low Security (%) 75 | 100 26 6 . 100 90 100 100 100 72 80 Level 1 24 | . 70 93 . . 9 . . . 27 19 Level 2 . | . 2 . . . . . . . . . Level 3 . | . . . . . . . . . . . Level 4 . | . . . . . . . . . . . Level 5 . | . . . . . . . . . . . High Security . | . . . . . . . . . . . Max Security . | . . . . . . . . . . . Squads Dispatched 22 | . 3 . . . 5 . . 2 12 . Investigation 4 | . 1 . . . . . . 1 2 . Extermination 5 | . . . . . . . . 1 4 . Reinforcement 9 | . 2 . . . 2 . . . 5 . Assault . | . . . . . . . . . . . Garrison 4 | . . . . . 3 . . . 1 . Intercept . | . . . . . . . . . . . Searches Triggered . | . . . . . . . . . . . Construction Impeded 3 | . . . . . . . . . 3 . Haulers Reinforced . | . . . . . . . . . . . Active Scanning Responses . | . . . . . . . . . . . Cargo Convoy Interrupts . | . . . . . . . . . . . Stealth | -11 -10 -10 -10 -9 -8 -7 -7 -7 -6 -6 --------- Run | Yrd Mat Min Exi Min Mat Fac Was Fac Fac Ext Distress Signals 7 | . . . . . 2 1 . 1 2 1 Communications Jammed . | . . . . . . . . . . . Distress Signals . | . . . . . . . . . . . Times Spotted 89 | 1 17 2 . . 9 . 10 16 27 7 Peak Tracking Total 5 | . 4 2 . . 3 . 5 5 4 4 Tactical Retreats 5 | . 1 . . . . . 1 . 2 1 Traps | -11 -10 -10 -10 -9 -8 -7 -7 -7 -6 -6 ------- Run | Yrd Mat Min Exi Min Mat Fac Was Fac Fac Ext Traps Triggered 6 | . 2 . . . . 1 . 1 2 . Indirectly 1 | . . . . . . . . 1 . . Trap Hack Attempts . | . . . . . . . . . . . Triggered . | . . . . . . . . . . . Disarmed . | . . . . . . . . . . . Reprogrammed . | . . . . . . . . . . . Reused . | . . . . . . . . . . . Traps Extracted . | . . . . . . . . . . . Installed . | . . . . . . . . . . . Triggered . | . . . . . . . . . . . Machines | -11 -10 -10 -10 -9 -8 -7 -7 -7 -6 -6 ---------- Run | Yrd Mat Min Exi Min Mat Fac Was Fac Fac Ext Machines Disabled 11 | . 3 1 . . 4 . . 1 2 . Max in Single Turn 2 | . 2 1 . . 2 . . 1 1 . Machines Repaired . | . . . . . . . . . . . Machines Dismantled . | . . . . . . . . . . . Machines Sabotaged . | . . . . . . . . . . . Overloaded Fab Kills . | . . . . . . . . . . . Hacking | -11 -10 -10 -10 -9 -8 -7 -7 -7 -6 -6 --------- Run | Yrd Mat Min Exi Min Mat Fac Was Fac Fac Ext Machines Accessed 11 | . 2 . 1 . 2 1 . . 5 . Terminals 4 | . . . . . . . . . 4 . Fabricators 1 | . . . . . . . . . 1 . Repair Stations 2 | . 1 . . . . 1 . . . . Recycling Units 2 | . 1 . . . 1 . . . . . Scanalyzers 1 | . . . . . 1 . . . . . Garrison Access . | . . . . . . . . . . . Total Hacks 24 | . 9 . 1 . 5 2 . . 7 . Successful 17 | . 6 . 1 . 5 2 . . 3 . Failed 7 | . 3 . . . . . . . 4 . Catastrophic 1 | . . . . . . . . . 1 . Database Lockouts . | . . . . . . . . . . . Manual 1 | . . . 1 . . . . . . . Terminals 5 | . . . . . . . . . 5 . Fabricators 2 | . . . . . . . . . 2 . Repair Stations 5 | . 3 . . . . 2 . . . . Recycling Units 9 | . 6 . . . 3 . . . . . Scanalyzers 2 | . . . . . 2 . . . . . Garrison Access . | . . . . . . . . . . . Terminal Hacks 3 | . . . 1 . . . . . 2 . Record 1 | . . . . . . . . . 1 . Open Door 1 | . . . . . . . . . 1 . Derelict Proto ID Bank 1 | . . . 1 . . . . . . . Fabricator Hacks 1 | . . . . . . . . . 1 . Load Schematic 1 | . . . . . . . . . 1 . Repair Station Hacks 4 | . 2 . . . . 2 . . . . Scan Component 2 | . 1 . . . . 1 . . . . Repair 2 | . 1 . . . . 1 . . . . Recycling Unit Hacks 7 | . 4 . . . 3 . . . . . Recycle Component 2 | . 1 . . . 1 . . . . . Process 2 | . 1 . . . 1 . . . . . Report Inventory 1 | . 1 . . . . . . . . . Retrieve Matter 2 | . 1 . . . 1 . . . . . Scanalyzer 2 | . . . . . 2 . . . . . Insert Component 1 | . . . . . 1 . . . . . Analyze 1 | . . . . . 1 . . . . . Garrison Access Hacks . | . . . . . . . . . . . Unauthorized Hacks . | . . . . . . . . . . . Terminals . | . . . . . . . . . . . Fabricators . | . . . . . . . . . . . Repair Stations . | . . . . . . . . . . . Recycling Units . | . . . . . . . . . . . Scanalyzers . | . . . . . . . . . . . Garrison Access . | . . . . . . . . . . . Data Cores Recovered 1 | . . . . . . . . . 1 . Used . | . . . . . . . . . . . Hacking Detections 6 | . 2 . . . 1 . . . 3 . Full Trace Events 1 | . 1 . . . . . . . . . Feedback Events . | . . . . . . . . . . . Feedback Blocked . | . . . . . . . . . . . Robot Schematics Acquired . | . . . . . . . . . . . Robots Built . | . . . . . . . . . . . Authchips . | . . . . . . . . . . . Time . | . . . . . . . . . . . Total Robot Build Rating . | . . . . . . . . . . . Part Schematics Acquired 1 | . . . . . 1 . . . . . Parts Built . | . . . . . . . . . . . Authchips . | . . . . . . . . . . . Time . | . . . . . . . . . . . Total Part Build Rating . | . . . . . . . . . . . Parts Repaired 2 | . 1 . . . . 1 . . . . Time 51 | . 32 . . . . 19 . . . . Parts Recycled 2 | . 1 . . . 1 . . . . . Recycled Matter 410 | . 1 . . . 409 . . . . . Retrieved Matter 471 | . 1 . . . 470 . . . . . Retrieved Components . | . . . . . . . . . . . Parts Scanalyzed 1 | . . . . . 1 . . . . . Part Schematics Acquired 1 | . . . . . 1 . . . . . Parts Damaged . | . . . . . . . . . . . Bothacking | -11 -10 -10 -10 -9 -8 -7 -7 -7 -6 -6 ------------ Run | Yrd Mat Min Exi Min Mat Fac Was Fac Fac Ext Used RIF Installer . | . . . . . . . . . . . Robots Hacked . | . . . . . . . . . . . Non-combat . | . . . . . . . . . . . Combat . | . . . . . . . . . . . Robot Hacks Applied . | . . . . . . . . . . . Relay Couplers Released 4 | . . . . . . . . 4 . . Programmers 4 | . . . . . . . . 4 . . Fabnet Peak Effective % . | . . . . . . . . . . . Robots Rewired . | . . . . . . . . . . . Allies Hacked . | . . . . . . . . . . . Hacks Repelled . | . . . . . . . . . . . Allies | -11 -10 -10 -10 -9 -8 -7 -7 -7 -6 -6 -------- Run | Yrd Mat Min Exi Min Mat Fac Was Fac Fac Ext Total Allies 1 | . . . . . . . 1 . . . Largest Group 1 | . . . . . . . 1 . . . Highest-Rated Group 31 | . . . . . . . 31 . . . Highest-Rated Ally 31 | . . . . . . . 31 . . . Total Orders . | . . . . . . . . . . . Ally Attacks 20 | . . . . . 15 . 5 . . . Total Damage 807 | . . . . . 700 . 107 . . . Kills 5 | . . . . . 5 . . . . . Allies Corrupted . | . . . . . . . . . . . Allies Melted 1 | . . . . . . . . . . 1 Turrets Deployed 2 | . . . . 1 1 . . . . . Intel | -11 -10 -10 -10 -9 -8 -7 -7 -7 -6 -6 ------- Run | Yrd Mat Min Exi Min Mat Fac Was Fac Fac Ext Robot Analysis Total . | . . . . . . . . . . . Derelict Logs Recovered . | . . . . . . . . . . . Drone Launches 3 | . . . . . . . . . . 3 Drone Recoveries 1 | . . . . . . . . . . 1 Exploration | -11 -10 -10 -10 -9 -8 -7 -7 -7 -6 -6 ------------- Run | Yrd Mat Min Exi Min Mat Fac Was Fac Fac Ext Turns Passed 8220 | 62 637 417 261 556 701 433 201 1127 3425 400 Spaces Moved 4913 | 65 610 438 234 308 475 346 158 602 1483 194 Core 149 | 15 . . . . 2 . 93 . 39 . Treads . | . . . . . . . . . . . Legs 2977 | . . . . 134 192 346 65 602 1444 194 Wheels 1787 | 50 610 438 234 174 281 . . . . . Hover . | . . . . . . . . . . . Flight . | . . . . . . . . . . . Fastest Speed 50 | 50 80 80 110 110 80 120 50 103 116 120 Average Speed 147 | 73 83 89 110 175 113 120 91 164 204 188 Slowest Speed 1000 | 80 95 110 110 260 500 120 130 200 1000 190 Overloaded Moves . | . . . . . . . . . . . Propulsion Burnouts . | . . . . . . . . . . . Robots Hopped 4 | . . . . 4 . . . . . . Cave-ins Triggered . | . . . . . . . . . . . Exploration Rate (%) 41 | 6 72 72 61 50 46 8 76 16 25 25 Regions Visited 10 Branch Regions 4 Pre-discovered Areas . | . . . . . . . . . . . Known Exits Taken 1 | . . . . . . . . . 1 . Unknown Exits Taken 7 | 1 1 1 1 1 1 . . 1 . . Scrap Searched 5 | . . 1 . 4 . . . . . . Spaces Dug . | . . . . . . . . . . . Terrain Destroyed 236 | . 38 28 . . 50 . 20 5 89 6 Melee . | . . . . . . . . . . . Projectile 46 | . . . . . . . . 1 39 6 AOE 190 | . 38 28 . . 50 . 20 4 50 . Terrain Rammed . | . . . . . . . . . . . Walls Destroyed . | . . . . . . . . . . . Machines Disabled . | . . . . . . . . . . . Actions | -11 -10 -10 -10 -9 -8 -7 -7 -7 -6 -6 --------- Run | Yrd Mat Min Exi Min Mat Fac Was Fac Fac Ext Total 5530 | 74 684 454 238 320 600 365 189 679 1717 210 Wait 106 | 1 4 . . . 48 2 . 3 48 . Move 4896 | 64 609 437 233 299 474 346 157 601 1482 194 Hop 4 | . . . . 4 . . . . . . Pick Up 105 | 3 11 7 3 7 21 7 7 12 24 3 Fast Attach 53 | 5 10 . . . 2 . . 14 22 . Attach 51 | . 5 2 . . 7 3 10 5 14 5 Detach 4 | . 2 . . . . . . . 2 . Swap 47 | . 3 2 . 6 19 3 4 4 6 . Drop 59 | . 6 1 2 4 12 4 . 9 21 . Fire 180 | 1 34 3 . . 16 . 11 25 82 8 Melee 3 | . . . . . . . . 3 . . Ram 3 | . . 2 . . 1 . . . . . Kick 14 | . . . . . . . . 3 11 . Crush . | . . . . . . . . . . . Escape Stasis 5 | . . . . . . . . . 5 . Rewire . | . . . . . . . . . . . Trap . | . . . . . . . . . . . Miscellaneous . | . . . . . . . . . . . Route ------- -11/Scrapyard -10/Materials (discovered 3 exits: [*Mat x2] / [*Min]) -10/Mines (discovered 3 exits: [*Mat x2] / *Exi) -10/Exiles (discovered 2 exits: [*Min x2]) -9/Mines (discovered 2 exits: *Mat x2) -8/Materials -7/Factory -7/Waste -7/Factory (discovered 2 exits: *Fac / [*Sto]) -6/Factory -6/Extension History --------- Turn | Location | Event 2 | -11/Scrapyard | Met Revision 17 47 | -11/Scrapyard | Discovered new exit (range 8) 63 | -11/Scrapyard | Entered Materials 302 | -10/Materials | Core integrity fell below 50% 337 | -10/Materials | Lost 3 parts (1n1u1w) 380 | -10/Materials | Discovered new exit (range 16) 448 | -10/Materials | Discovered new exit (range 16) 466 | -10/Materials | Repaired Particle Gun? 610 | -10/Materials | Build established: Mutant 652 | -10/Materials | Discovered new exit (range 16) 700 | -10/Materials | Entered Mines 700 | -10/Mines | Discovered new exit (range 6) 743 | -10/Mines | Lost 3 parts (2p1u) 825 | -10/Mines | Discovered new exit (range 7) 850 | -10/Mines | Met a Derelict bent on vengeance 1111 | -10/Mines | Deemed a non-threat by the Exiles lab entrance 1112 | -10/Mines | Discovered new exit (range 5) 1117 | -10/Mines | Entered Exiles 1133 | -10/Exiles | Discovered new exit (range 15) 1150 | -10/Exiles | Met 8R-AWN 1166 | -10/Exiles | Met EX-HEX 1198 | -10/Exiles | Met EX-BIN 1211 | -10/Exiles | Aligned with FarCom system 1212 | -10/Exiles | Given EX-Vault access code 1238 | -10/Exiles | Opened EX-Vault 1246 | -10/Exiles | Found Deploy-a-Sentry 1248 | -10/Exiles | Found Deploy-a-Sentry 1250 | -10/Exiles | Found Deploy-a-Sentry 1290 | -10/Exiles | Warned to stay clear of 0b10 Research branches 1322 | -10/Exiles | Met EX-DEC 1363 | -10/Exiles | Discovered new exit (range 14) 1378 | -10/Exiles | Left Exiles lab with Deploy-a-Sentry 1378 | -10/Exiles | Entered Mines 1384 | -9/Mines | DAS Turret deployed 1391 | -9/Mines | Discovered new exit (range 9) 1809 | -9/Mines | Discovered new exit (range 9) 1934 | -9/Mines | Entered Materials 1934 | -8/Materials | Evolved 4 slots: Propulsion x1, Utility x2, Weapon x1 1983 | -8/Materials | DAS Turret deployed 2153 | -8/Materials | Garrison activated, responded to threat 2177 | -8/Materials | Met 7R-MNS 2568 | -8/Materials | Build established: Skirmisher 2599 | -8/Materials | Discovered new exit (range 15) 2635 | -8/Materials | Entered Factory 2635 | -7/Factory | Evolved 2 slots: Power x1, Weapon x1 2636 | -7/Factory | Caught up to 7R-MNS 2712 | -7/Factory | Repaired Shock Rifle 3068 | -7/Factory | Sucked down chute 3068 | -7/Factory | Entered Waste 3069 | -7/Waste | Met a frightened Derelict 3079 | -7/Waste | Spotted C-40 Crusher 3103 | -7/Waste | Destroyed C-40 Crusher 3120 | -7/Waste | Spotted C-40 Crusher 3127 | -7/Waste | Spotted C-40 Crusher 3139 | -7/Waste | Spotted C-40 Crusher 3140 | -7/Waste | Crushed by Compactor (1 part destroyed, 1 dropped) 3143 | -7/Waste | Crushed by Compactor (1 part destroyed, 2 dropped) 3146 | -7/Waste | Crushed by Compactor (1 part destroyed, 2 dropped) 3152 | -7/Waste | Crushed by Compactor (1 part destroyed, 2 dropped) 3155 | -7/Waste | Crushed by Compactor (1 part destroyed) 3165 | -7/Waste | Spotted C-40 Crusher 3182 | -7/Waste | Spotted C-40 Crusher 3186 | -7/Waste | Lost 9 parts (1p2n2u4w) 3193 | -7/Waste | Crushed by Compactor (1 part destroyed) 3200 | -7/Waste | Crushed by Compactor (1 part destroyed) 3213 | -7/Waste | Discovered new exit (range 15) 3269 | -7/Waste | Entered Factory 3439 | -7/Factory | Build established: Mutant 3825 | -7/Factory | Discovered new exit (range 8) 4219 | -7/Factory | Lost 4 parts (1p1u2w) 4336 | -7/Factory | Discovered new exit (range 18) 4396 | -7/Factory | Entered another Factory area 4396 | -6/Factory | Evolved 2 slots: Power x1, Utility x1 4499 | -6/Factory | Build established: Scavenger-Skirmisher 5776 | -6/Factory | Build established: Skirmisher 6109 | -6/Factory | Lost 9 parts (2p3n2u2w) 6307 | -6/Factory | Garrison activated, responded to threat 6396 | -6/Factory | Lost 5 parts (2p3w) 6410 | -6/Factory | Core integrity fell below 50% 6477 | -6/Factory | Lost 3 parts (3w) 6700 | -6/Factory | System corruption reached 10% 6808 | -6/Factory | Build established: Scavenger-Mutant 7130 | -6/Factory | Build established: Scavenger-Skirmisher 7386 | -6/Factory | Core integrity fell below 20% 7762 | -6/Factory | Discovered new exit (range 6) 7819 | -6/Factory | Identified exit to Extension 7821 | -6/Factory | Entered Extension 7962 | -6/Extension | Spotted B-75 Beast 8011 | -6/Extension | Lost 4 parts (1p1n1u1w) 8221 | -6/Extension | Destroyed by Y-54 Guardian with Gatling Laser Last Messages --------------- 08145_ Acquired 47 matter. 08147_ System corrupted: Heat flow error (+269). 08149_ Acquired 22 matter. 08151_ T-07 Excavator enters Transfer Station. 08152_ K-01 Serf enters Transfer Station. 08153_ Acquired Lgt. Nuclear Core. 08153_ R-10 Processor enters Transfer Station. 08175_ KL83ET5Q CSALX6L5QM8XGRA 08211_ Y-54 Guardian springs to life. 08211_ Lgt. Angular Momentum Engine destroyed. 08212_ Y-54 Guardian springs to life. 08212_ Drone Bay destroyed. 08212_ >> Lost connection to Drone. 08214_ System corrupted: Substantial component data lost. 08215_ Phase Cannon destroyed. 08219_ Slug penetrates Y-54 Guardian. [Achievement: 5k Club] Map ----- +----------------------------------------------------+ | | | | | | | | | | | | | | | | | | | | | | | | | | | | | | | | | | | | | | | | | | | | | ?????????????????????????????????????????????? | | ?????????????????????????????????????????????? | | ???????????????#########?????????????????????? | | ?????######????#; @ #?????????????????????? | | ?????# #????## ggY #?????????????????????? | | ?????# #?????# bhY #?????????????????????? | | ?????# ####### n #?????????????????????? | | ?????# !!! + #?????????????????????? | | ?????# !!! # #?????????????????????? | | ?????# !! ##;#####?????????????????????? | | ?????# #?????????????????????????? | | ?????# #?????????????????????????? | | ?????# #?????????????????????????? | | ?????# #?????????????????????????? | | ?????# #?????????????????????????? | | ?????# ##????????????????????????? | | ?????# ?????????????????? | | ?????# #####################?????????????????? | | ?????# #?????????????????????????????????????? | | ?????# #?????????????????????????????????????? | | ?????# #?????????????????????????????????????? | | ?????# #?????????????????????????????????????? | | ?????# #?????????????????????????????????????? | | ?????# #?????????????????????????????????????? | | ?????#=#?????????????????????????????????????? | | ?????# #?????????????????????????????????????? | | ?????# #?????????????????????????????????????? | | ?????#[#?????????????????????????????????????? | +----------------------------------------------------+ Best States ------------- Heat Dissipation 110 Energy Generation 42 Energy Capacity 560 Matter Stores 400 Matter Capacity 400 Sight Range 20 Robot Scan Range 15 Terrain Scan Density 85 Jamming Range 12 Additional Mass Support 9 Armor Coverage 375 Resistance: KI 30 Core Shielding 20 Utility Shielding 33 Evasion (%) 59 Matter Filtering 30 Item Schematics ----------------- Adv. EMP Blaster | -8/Materials | Scanalyzed Robot Schematics ------------------ None Fabricated ------------ Nothing Alien Tech Used ----------------- None Achievements -------------- 5k Club Crack Shot Hey, That's Mine! I Spy It's Just You Loot Pinata Made in Tau Ceti IV One Hack Too Far Part-time Mechanic Please Form A Line Serviceable Loadout System Compromised Troublemaker Challenges ------------ None Game ------ Seed NullIntegratedScythe Manual? 0 Play Time 02:18:01 Cumulative 3.2 hours Start 2024.06.27 @ 22:28:44 End 2024.06.28 @ 01:05:11 Sessions 1 Manual Loads 0 Difficulty Rogue Special Mode None Game No. 2 Rogue 2 Adventurer 0 Explorer 0 Win Type - Total 0 Types 0/0/0/0/0/0/0/0/0 Lore% 2 Gallery% 8 Achievement% 7 Wizard Run 0 Options --------- Layout 1 ASCII 0 Keyboard 0 Movement Numpad Keybinds 0 Fullscreen 1 Font 24/Smallcaps Map View 50x35 Zoom Use 0% Tactical HUD 1 Map Filters NONE Filters NONE Steam 1 RUN: dcad3957-aa26-40bf-a77d-58bcb8753fd0